fUST/lending_fUST_20250727
["ID","MTS","AMOUNT","RATE_DAILY","PERIOD"]
[375290854,1753618263469,-539.55,0.00021917,2]
[375290855,1753618263478,-548.0,0.00021917,2]
[375290856,1753618263488,-1243.52,0.00021917,2]
[375290857,1753618263498,-460.0,0.00021917,2]
[375290858,1753618263507,-460.0,0.00021917,2]
[375290859,1753618263517,-460.0,0.00021917,2]
[375290860,1753618263527,-460.0,0.00021917,2]
[375290861,1753618263536,-488.97,0.00021917,2]
[375290862,1753618263545,-460.0,0.00021917,2]
[375290863,1753618263555,-612.0,0.00021917,2]
[375290864,1753618263564,-460.0,0.00021917,2]
[375290865,1753618263574,-1391.93,0.00021917,2]
[375290866,1753618263584,-460.0,0.00021917,2]
[375290867,1753618263594,-460.0,0.00021917,2]
[375290868,1753618263604,-3764.68,0.00021917,2]
[375290869,1753618263615,-460.0,0.00021917,2]
[375290870,1753618263626,-150.0,0.00021918,2]
[375290871,1753618263636,-150.60043876,0.00021918,2]
[375290872,1753618263646,-4088.1679559,0.00021937,2]
[375290873,1753618263655,-2180.37725393,0.00021969,6]
[375290874,1753618263665,-4239.43017027,0.00021992,2]
[375290875,1753618263675,-717.8,0.00022,7]
[375290876,1753618263684,-2587.49,0.00022,7]
[375290877,1753618263694,-3985.85,0.00022,7]
[375290878,1753618263703,-23783.67,0.00022,2]
[375290879,1753618263713,-302.67,0.00022,2]
[375290880,1753618263722,-307.18,0.00022022,2]
[375290881,1753618263732,-4396.28908657,0.00022047,2]
[375290882,1753618263742,-4558.95178277,0.00022102,2]
[375290883,1753618263754,-4727.63299873,0.00022157,2]
[375290884,1753618263765,-2180.37725393,0.00022176,6]
[375290885,1753618263775,-560.0,0.00022182,2]
[375290886,1753618263784,-466.15288213,0.00022191,2]
[375290887,1753618263795,-460.0,0.00022191,2]
[375290888,1753618263805,-460.0,0.00022191,2]
[375290889,1753618263814,-460.0,0.00022191,2]
[375290890,1753618263825,-894.62,0.00022191,2]
[375290891,1753618263834,-245.59429499,0.00022191,2]
[375290892,1753618263844,-460.0,0.00022191,2]
[375290893,1753618263854,-371.86,0.00022191,2]
[375290894,1753618263863,-460.0,0.00022191,2]
[375290895,1753618263873,-1057.71,0.00022191,2]
[375290896,1753618263883,-460.0,0.00022191,2]
[375290897,1753618263892,-495.69,0.00022191,2]
[375290898,1753618263902,-460.0,0.00022191,2]
[375290899,1753618263911,-460.0,0.00022191,2]
[375290900,1753618263921,-460.0,0.00022191,2]
[375290901,1753618263930,-1372.13,0.00022191,2]
[375290902,1753618263939,-481.75,0.00022191,2]
[375290903,1753618263949,-460.0,0.00022191,2]
[375290904,1753618263958,-460.0,0.00022191,2]
[375290905,1753618263967,-460.0,0.00022191,2]
[375290906,1753618263977,-756.82,0.00022191,2]
[375290907,1753618263986,-460.0,0.00022191,2]
[375290908,1753618263996,-460.0,0.00022191,2]
[375290909,1753618264005,-493.3,0.00022191,2]
[375290910,1753618264015,-807.96,0.00022191,2]
[375290911,1753618264024,-2045.53,0.00022191,2]
[375290912,1753618264034,-460.0,0.00022191,2]
[375290913,1753618264043,-460.0,0.00022191,2]
[375290914,1753618264053,-460.0,0.00022191,2]
[375290915,1753618264062,-460.0,0.00022191,2]
[375290916,1753618264072,-636.45,0.00022191,2]
[375290917,1753618264081,-460.0,0.00022191,2]
[375290918,1753618264091,-523.9,0.00022191,2]
[375290919,1753618264100,-460.0,0.00022191,2]
[375290920,1753618264109,-1100.48,0.00022191,2]
[375290921,1753618264118,-1858.93,0.00022191,2]
[375290922,1753618264130,-460.0,0.00022191,2]
[375290923,1753618264140,-460.0,0.00022191,2]
[375290924,1753618264150,-1248.85,0.00022191,2]
[375290925,1753618264159,-1298.78,0.00022191,2]
[375290926,1753618264169,-460.0,0.00022191,2]
[375290927,1753618264178,-460.0,0.00022191,2]
[375290928,1753618264189,-460.0,0.00022191,2]
[375290929,1753618264198,-460.0,0.00022191,2]
[375290930,1753618264208,-460.0,0.00022191,2]
[375290931,1753618264218,-539.55,0.00022191,2]
[375290932,1753618264227,-548.0,0.00022191,2]
[375290933,1753618264237,-1243.52,0.00022191,2]
[375290934,1753618264246,-460.0,0.00022191,2]
[375290935,1753618264256,-232.40060355,0.00022191,2]
[375290936,1753618264265,-460.0,0.00022191,2]
[375290937,1753618264275,-488.97,0.00022191,2]
[375290938,1753618264284,-460.0,0.00022191,2]
[375290939,1753618264294,-460.0,0.00022191,2]
[375290940,1753618264305,-612.0,0.00022191,2]
[375290941,1753618264314,-460.0,0.00022191,2]
[375290942,1753618264324,-1391.93,0.00022191,2]
[375290943,1753618264333,-460.0,0.00022191,2]
[375290944,1753618264343,-460.0,0.00022191,2]
[375290945,1753618264354,-3764.68,0.00022191,2]
[375290946,1753618264363,-4902.55541968,0.00022212,2]
[375290947,1753618264373,-1158.08855282,0.00022267,2]
[375290948,1753618264383,-587.0,0.00022312,2]
[375290949,1753618264393,-25000.0,0.00022375,2]
[375290950,1753618264402,-2180.37725393,0.00022383,7]
[375290951,1753618264412,-787.72,0.000224,2]
[375290952,1753618264422,-500.0,0.00022412,2]
[375290953,1753618264430,-460.0,0.00022465,2]
[375290954,1753618264440,-460.0,0.00022465,2]
[375290955,1753618264449,-894.62,0.00022465,2]
[375290956,1753618264458,-460.0,0.00022465,2]
[375290957,1753618264467,-460.0,0.00022465,2]
[375290958,1753618264476,-1057.71,0.00022465,2]
[375290959,1753618264485,-460.0,0.00022465,2]
[375290960,1753618264494,-495.69,0.00022465,2]
[375290961,1753618264503,-338.62,0.00022465,2]
[375290962,1753618264513,-566.0,0.00022465,2]
[375290963,1753618264523,-460.0,0.00022465,2]
[375290964,1753618264532,-1372.13,0.00022465,2]
[375290965,1753618264541,-481.75,0.00022465,2]
[375290966,1753618264551,-460.0,0.00022465,2]
[375290967,1753618264560,-460.0,0.00022465,2]
[375290968,1753618264570,-756.82,0.00022465,2]
[375290969,1753618264579,-460.0,0.00022465,2]
[375290970,1753618264589,-460.0,0.00022465,2]
[375290971,1753618264598,-493.3,0.00022465,2]
[375290972,1753618264608,-807.96,0.00022465,2]
[375290973,1753618264617,-2045.53,0.00022465,2]
[375290974,1753618264627,-460.0,0.00022465,2]
[375290975,1753618264636,-460.0,0.00022465,2]
[375290976,1753618264646,-460.0,0.00022465,2]
[375290977,1753618264655,-460.0,0.00022465,2]
[375290978,1753618264664,-636.45,0.00022465,2]
[375290979,1753618264673,-460.0,0.00022465,2]
[375290980,1753618264682,-523.9,0.00022465,2]
[375290981,1753618264692,-443.73,0.00022465,2]
[375290982,1753618264701,-1100.48,0.00022465,2]
[375290983,1753618264711,-1858.93,0.00022465,2]
[375290984,1753618264720,-460.0,0.00022465,2]
[375290985,1753618264730,-460.0,0.00022465,2]
[375290986,1753618264739,-1248.85,0.00022465,2]
[375290987,1753618264748,-460.0,0.00022465,2]
[375290988,1753618264761,-1298.78,0.00022465,2]
[375290989,1753618264770,-460.0,0.00022465,2]
[375290990,1753618264780,-460.0,0.00022465,2]
[375290991,1753618264789,-460.0,0.00022465,2]
[375290992,1753618264799,-539.55,0.00022465,2]
[375290993,1753618264808,-548.0,0.00022465,2]
[375290994,1753618264818,-1243.52,0.00022465,2]
[375290995,1753618264827,-460.0,0.00022465,2]
[375290996,1753618264839,-460.0,0.00022465,2]
[375290997,1753618264848,-488.97,0.00022465,2]
[375290998,1753618264858,-460.0,0.00022465,2]
[375290999,1753618264867,-460.0,0.00022465,2]
[375291000,1753618264879,-612.0,0.00022465,2]
[375291001,1753618264888,-460.0,0.00022465,2]
[375291002,1753618264898,-1391.93,0.00022465,2]
[375291003,1753618264907,-460.0,0.00022465,2]
[375291004,1753618264916,-460.0,0.00022465,2]
[375291005,1753618264926,-1683.47,0.00022465,2]
[375291006,1753618264935,-300.80236473,0.00022466,2]
[375291007,1753618264944,-500.0,0.00022491,2]
[375291008,1753618264954,-302.67,0.000225,2]
[375291009,1753618264963,-2180.37725393,0.0002259,7]
[375291010,1753618264973,-214.84090509,0.000226,7]
[375291011,1753618264983,-160.0,0.000226,7]
[375291012,1753618264992,-417.378525,0.00022603,2]
[375291013,1753618265001,-660.0,0.00022729,2]
[375291014,1753618265010,-460.0,0.00022739,2]
[375291015,1753618265019,-894.62,0.00022739,2]
[375291016,1753618265028,-460.0,0.00022739,2]
[375291017,1753618265038,-460.0,0.00022739,2]
[375291018,1753618265047,-1057.71,0.00022739,2]
[375291019,1753618265057,-460.0,0.00022739,2]
[375291020,1753618265066,-495.69,0.00022739,2]
[375291021,1753618265075,-460.0,0.00022739,2]
[375291022,1753618265085,-1372.13,0.00022739,2]
[375291023,1753618265094,-481.75,0.00022739,2]
[375291024,1753618265104,-460.0,0.00022739,2]
[375291025,1753618265113,-460.0,0.00022739,2]
[375291026,1753618265122,-756.82,0.00022739,2]
[375291027,1753618265132,-460.0,0.00022739,2]
[375291028,1753618265141,-547.95885363,0.00022739,2]
[375291029,1753618265150,-493.3,0.00022739,2]
[375291030,1753618265159,-807.96,0.00022739,2]
[375291031,1753618265169,-2045.53,0.00022739,2]
[375291032,1753618265178,-472.41,0.00022739,2]
[375291033,1753618265188,-460.0,0.00022739,2]
[375291034,1753618265198,-460.0,0.00022739,2]
[375291035,1753618265207,-460.0,0.00022739,2]
[375291036,1753618265216,-636.45,0.00022739,2]
[375291037,1753618265226,-460.0,0.00022739,2]
[375291038,1753618265235,-523.9,0.00022739,2]
[375291039,1753618265244,-1100.48,0.00022739,2]
[375291040,1753618265254,-1858.93,0.00022739,2]
[375291041,1753618265264,-460.0,0.00022739,2]
[375291042,1753618265274,-460.0,0.00022739,2]
[375291043,1753618265283,-1248.85,0.00022739,2]
[375291044,1753618265293,-460.0,0.00022739,2]
[375291045,1753618265303,-1298.78,0.00022739,2]
[375291046,1753618265313,-460.0,0.00022739,2]
[375291047,1753618265323,-460.0,0.00022739,2]
[375291048,1753618265332,-460.0,0.00022739,2]
[375291049,1753618265341,-539.55,0.00022739,2]
[375291050,1753618265350,-548.0,0.00022739,2]
[375291051,1753618265360,-1243.52,0.00022739,2]
[375291052,1753618265369,-460.0,0.00022739,2]
[375291053,1753618265380,-460.0,0.00022739,2]
[375291054,1753618265389,-488.97,0.00022739,2]
[375291055,1753618265398,-460.0,0.00022739,2]
[375291056,1753618265408,-460.0,0.00022739,2]
[375291057,1753618265417,-612.0,0.00022739,2]
[375291058,1753618265427,-460.0,0.00022739,2]
[375291059,1753618265437,-1391.93,0.00022739,2]
[375291060,1753618265446,-460.0,0.00022739,2]
[375291061,1753618265455,-460.0,0.00022739,2]
[375291062,1753618265465,-2180.37725393,0.00022797,7]
[375291063,1753618265474,-253.99773078,0.00022848,2]
[375291064,1753618265484,-25000.0,0.00022923,2]
[375291065,1753618265494,-383.98,0.0002294,2]
[375291066,1753618265504,-200.64658427,0.00022941,2]
[375291067,1753618265513,-302.67,0.00022963,2]
[375291068,1753618265522,-160.0,0.00023,2]
[375291069,1753618265532,-2180.37725393,0.00023003,8]
[375291070,1753618265542,-460.0,0.00023013,2]
[375291071,1753618265551,-894.62,0.00023013,2]
[375291072,1753618265560,-460.0,0.00023013,2]
[375291073,1753618265570,-460.0,0.00023013,2]
[375291074,1753618265580,-1057.71,0.00023013,2]
[375291075,1753618265590,-460.0,0.00023013,2]
[375291076,1753618265600,-495.69,0.00023013,2]
[375291077,1753618265609,-460.0,0.00023013,2]
[375291078,1753618265619,-1372.13,0.00023013,2]
[375291079,1753618265629,-481.75,0.00023013,2]
[375291080,1753618265638,-460.0,0.00023013,2]
[375291081,1753618265648,-460.0,0.00023013,2]
[375291082,1753618265657,-756.82,0.00023013,2]
[375291083,1753618265667,-501.64,0.00023013,2]
[375291084,1753618265676,-493.3,0.00023013,2]
[375291085,1753618265686,-807.96,0.00023013,2]
[375291086,1753618265695,-2045.53,0.00023013,2]
[375291087,1753618265704,-460.0,0.00023013,2]
[375291088,1753618265831,-460.0,0.00023013,2]
[375291089,1753618265841,-460.0,0.00023013,2]
[375291090,1753618265851,-636.45,0.00023013,2]
[375291091,1753618265861,-460.0,0.00023013,2]
[375291092,1753618265872,-523.9,0.00023013,2]
[375291093,1753618265883,-1100.48,0.00023013,2]
[375291094,1753618265892,-1858.93,0.00023013,2]
[375291095,1753618265902,-460.0,0.00023013,2]
[375291096,1753618265911,-460.0,0.00023013,2]
[375291097,1753618265922,-1248.85,0.00023013,2]
[375291098,1753618265932,-460.0,0.00023013,2]
[375291099,1753618265941,-1298.78,0.00023013,2]
[375291100,1753618265951,-460.0,0.00023013,2]
[375291101,1753618265962,-460.0,0.00023013,2]
[375291102,1753618265972,-460.0,0.00023013,2]
[375291103,1753618265984,-539.55,0.00023013,2]
[375291104,1753618265996,-548.0,0.00023013,2]
[375291105,1753618266005,-1243.52,0.00023013,2]
[375291106,1753618266014,-460.0,0.00023013,2]
[375291107,1753618266024,-460.0,0.00023013,2]
[375291108,1753618266033,-460.0,0.00023013,2]
[375291109,1753618266042,-488.97,0.00023013,2]
[375291110,1753618266052,-460.0,0.00023013,2]
[375291111,1753618266061,-612.0,0.00023013,2]
[375291112,1753618266070,-460.0,0.00023013,2]
[375291113,1753618266079,-1391.93,0.00023013,2]
[375291114,1753618266089,-460.0,0.00023013,2]
[375291115,1753618266098,-460.0,0.00023013,2]
[375291116,1753618266108,-543.51,0.00023132,7]
[375291117,1753618266118,-722.93,0.0002314,6]
[375291118,1753618266129,-534.28,0.0002314,3]
[375291119,1753618266139,-2180.37725393,0.0002321,8]
[375291120,1753618266149,-543.51,0.00023232,3]
[375291121,1753618266159,-534.28,0.0002324,5]
[375291122,1753618266169,-760.0,0.00023277,2]
[375291123,1753618266178,-460.0,0.00023287,2]
[375291124,1753618266188,-894.62,0.00023287,2]
[375291125,1753618266197,-357.83,0.00023287,2]
[375291126,1753618266207,-460.0,0.00023287,2]
[375291127,1753618266217,-1057.71,0.00023287,2]
[375291128,1753618266226,-460.0,0.00023287,2]
[375291129,1753618266236,-495.69,0.00023287,2]
[375291130,1753618266245,-460.0,0.00023287,2]
[375291131,1753618266255,-481.75,0.00023287,2]
[375291132,1753618266264,-1372.13,0.00023287,2]
[375291133,1753618266273,-460.0,0.00023287,2]
[375291134,1753618266283,-460.0,0.00023287,2]
[375291135,1753618266293,-756.82,0.00023287,2]
[375291136,1753618266302,-493.3,0.00023287,2]
[375291137,1753618266311,-807.96,0.00023287,2]
[375291138,1753618266321,-2045.53,0.00023287,2]
[375291139,1753618266330,-460.0,0.00023287,2]
[375291140,1753618266339,-460.0,0.00023287,2]
[375291141,1753618266349,-460.0,0.00023287,2]
[375291142,1753618266358,-636.45,0.00023287,2]
[375291143,1753618266367,-460.0,0.00023287,2]
[375291144,1753618266377,-523.9,0.00023287,2]
[375291145,1753618266387,-1858.93,0.00023287,2]
[375291146,1753618266396,-1100.48,0.00023287,2]
[375291147,1753618266405,-474.6438786,0.00023287,2]
[375291148,1753618266415,-460.0,0.00023287,2]
[375291149,1753618266424,-1248.85,0.00023287,2]
[375291150,1753618266433,-554.59732355,0.00023287,2]
[375291151,1753618266445,-1298.78,0.00023287,2]
[375291152,1753618266455,-460.0,0.00023287,2]
[375291153,1753618266465,-460.0,0.00023287,2]
[375291154,1753618266475,-460.0,0.00023287,2]
[375291155,1753618266485,-539.55,0.00023287,2]
[375291156,1753618266496,-548.0,0.00023287,2]
[375291157,1753618266505,-1243.52,0.00023287,2]
[375291158,1753618266515,-460.0,0.00023287,2]
[375291159,1753618266525,-460.0,0.00023287,2]
[375291160,1753618266534,-329.02,0.00023287,2]
[375291161,1753618266545,-488.97,0.00023287,2]
[375291162,1753618266556,-460.0,0.00023287,2]
[375291163,1753618266565,-612.0,0.00023287,2]
[375291164,1753618266574,-460.0,0.00023287,2]
[375291165,1753618266583,-1391.93,0.00023287,2]
[375291166,1753618266592,-460.0,0.00023287,2]
[375291167,1753618266602,-460.0,0.00023287,2]
[375291168,1753618266612,-543.52,0.00023332,5]
[375291169,1753618266624,-534.28,0.0002334,7]
[375291170,1753618266634,-3985.85,0.000234,7]
[375291171,1753618266643,-23783.67,0.000234,2]
[375291172,1753618266653,-2180.37725393,0.00023417,9]
[375291173,1753618266663,-534.28,0.0002344,6]
[375291174,1753618266672,-302.67,0.00023444,2]
[375291175,1753618266682,-8140.0226623,0.00023461,2]
[375291176,1753618266693,-25000.0,0.00023471,2]
[375291177,1753618266703,-172.29839479,0.00023479,2]
[375291178,1753618266714,-160.0,0.000235,3]
[375291179,1753618266725,-500.0,0.00023508,2]
[375291180,1753618266736,-534.28,0.0002354,2]
[375291181,1753618266746,-542.86,0.00023561,2]
[375291182,1753618266760,-894.62,0.00023561,2]
[375291183,1753618266770,-460.0,0.00023561,2]
[375291184,1753618266779,-1057.71,0.00023561,2]
[375291185,1753618266788,-460.0,0.00023561,2]
[375291186,1753618266798,-495.69,0.00023561,2]
[375291187,1753618266807,-457.21,0.00023561,2]
[375291188,1753618266817,-481.75,0.00023561,2]
[375291189,1753618266826,-1372.13,0.00023561,2]
[375291190,1753618266837,-460.0,0.00023561,2]
[375291191,1753618266847,-462.82245876,0.00023561,2]
[375291192,1753618266856,-756.82,0.00023561,2]
[375291193,1753618266865,-493.3,0.00023561,2]
[375291194,1753618266875,-807.96,0.00023561,2]
[375291195,1753618266885,-2045.53,0.00023561,2]
[375291196,1753618266894,-460.0,0.00023561,2]
[375291197,1753618266904,-460.0,0.00023561,2]
[375291198,1753618266913,-460.0,0.00023561,2]
[375291199,1753618266923,-636.45,0.00023561,2]
[375291200,1753618266933,-460.0,0.00023561,2]
[375291201,1753618266942,-523.9,0.00023561,2]
[375291202,1753618266951,-1858.93,0.00023561,2]
[375291203,1753618266960,-1100.48,0.00023561,2]
[375291204,1753618266969,-526.11,0.00023561,2]
[375291205,1753618266979,-1248.85,0.00023561,2]
[375291206,1753618266988,-1298.78,0.00023561,2]
[375291207,1753618267001,-460.0,0.00023561,2]
[375291208,1753618267010,-200.0,0.00023561,2]
[375291209,1753618267019,-200.0,0.00023561,2]
[375291210,1753618267029,-200.0,0.00023561,2]
[375291211,1753618267038,-200.0,0.00023561,2]
[375291212,1753618267047,-200.0,0.00023561,2]
[375291213,1753618267057,-312.48441259,0.00023561,2]
[375291214,1753618267067,-460.0,0.00023561,2]
[375291215,1753618267077,-460.0,0.00023561,2]
[375291216,1753618267086,-539.55,0.00023561,2]
[375291217,1753618267095,-548.0,0.00023561,2]
[375291218,1753618267105,-1243.52,0.00023561,2]
[375291219,1753618267114,-460.0,0.00023561,2]
[375291220,1753618267123,-460.0,0.00023561,2]
[375291221,1753618267134,-488.97,0.00023561,2]
[375291222,1753618267143,-460.0,0.00023561,2]
[375291223,1753618267153,-612.0,0.00023561,2]
[375291224,1753618267161,-460.0,0.00023561,2]
[375291225,1753618267171,-1391.93,0.00023561,2]
[375291226,1753618267180,-460.0,0.00023561,2]
[375291227,1753618267189,-460.0,0.00023561,2]
[375291228,1753618267199,-172.29839479,0.00023589,2]
[375291229,1753618267209,-717.8,0.000236,7]
[375291230,1753618267218,-2587.49,0.000236,7]
[375291231,1753618267228,-2180.37725393,0.00023624,9]
[375291232,1753618267238,-534.28,0.0002364,7]
[375291233,1753618267248,-172.29839479,0.00023699,2]
[375291234,1753618267258,-534.28,0.0002374,2]
[375291235,1753618267268,-172.29839479,0.00023808,2]
[375291236,1753618267277,-253.99773078,0.00023815,2]
[375291237,1753618267287,-860.0,0.00023825,2]
[375291238,1753618267296,-2180.37725393,0.00023831,10]
[375291239,1753618267306,-894.62,0.00023835,2]
[375291240,1753618267315,-460.0,0.00023835,2]
[375291241,1753618267326,-1057.71,0.00023835,2]
[375291242,1753618267335,-460.0,0.00023835,2]
[375291243,1753618267345,-495.69,0.00023835,2]
[375291244,1753618267355,-481.75,0.00023835,2]
[375291245,1753618267365,-1372.13,0.00023835,2]
[375291246,1753618267374,-460.0,0.00023835,2]
[375291247,1753618267385,-756.82,0.00023835,2]
[375291248,1753618267395,-493.3,0.00023835,2]
[375291249,1753618267404,-807.96,0.00023835,2]
[375291250,1753618267414,-2045.53,0.00023835,2]
[375291251,1753618267423,-460.0,0.00023835,2]
[375291252,1753618267432,-460.0,0.00023835,2]
[375291253,1753618267442,-460.0,0.00023835,2]
[375291254,1753618267452,-636.45,0.00023835,2]
[375291255,1753618267461,-460.0,0.00023835,2]
[375291256,1753618267471,-523.9,0.00023835,2]
[375291257,1753618267481,-1858.93,0.00023835,2]
[375291258,1753618267490,-1100.48,0.00023835,2]
[375291259,1753618267501,-1248.85,0.00023835,2]
[375291260,1753618267512,-1298.78,0.00023835,2]
[375291261,1753618267522,-460.0,0.00023835,2]
[375291262,1753618267531,-460.0,0.00023835,2]
[375291263,1753618267541,-460.0,0.00023835,2]
[375291264,1753618267550,-539.55,0.00023835,2]
[375291265,1753618267560,-548.0,0.00023835,2]
[375291266,1753618267570,-1243.52,0.00023835,2]
[375291267,1753618267580,-460.0,0.00023835,2]
[375291268,1753618267589,-460.0,0.00023835,2]
[375291269,1753618267599,-488.97,0.00023835,2]
[375291270,1753618267609,-460.0,0.00023835,2]
[375291271,1753618267619,-612.0,0.00023835,2]
[375291272,1753618267629,-460.0,0.00023835,2]
[375291273,1753618267639,-1391.93,0.00023835,2]
[375291274,1753618267649,-460.0,0.00023835,2]
[375291275,1753618267659,-460.0,0.00023835,2]
[375291276,1753618267669,-534.28,0.0002384,5]
[375291277,1753618267678,-460.77,0.00023858,2]
[375291278,1753618267687,-3399.84477629,0.000239,2]
[375291279,1753618267697,-172.29839479,0.00023918,2]
[375291280,1753618267706,-302.67,0.00023925,2]
[375291281,1753618267716,-534.28,0.0002394,5]
[375291282,1753618267726,-429.9863832,0.00023945,2]
[375291283,1753618267735,-429.9863832,0.00023945,2]
[375291284,1753618267744,-428.8286288,0.00023945,2]
[375291285,1753618267755,-840.75038169,0.00024,7]
[375291286,1753618267766,-526.50274803,0.00024,7]
[375291287,1753618267775,-25000.0,0.00024019,2]
[375291288,1753618267785,-172.29839479,0.00024027,2]
[375291289,1753618267794,-304.37602874,0.00024035,5]
[375291290,1753618267805,-2180.37725393,0.00024038,10]
[375291291,1753618267815,-534.28,0.0002404,3]
[375291292,1753618267824,-500.0,0.00024041,2]
[375291293,1753618267838,-256.650549,0.00024054,7]
[375291294,1753618267849,-261.200108,0.00024054,7]
[375291295,1753618267858,-151.0,0.00024054,7]
[375291296,1753618267867,-151.0,0.00024054,7]
[375291297,1753618267876,-151.0,0.00024054,7]
[375291298,1753618267887,-151.0,0.00024054,7]
[375291299,1753618267897,-151.0,0.00024054,7]
[375291300,1753618267906,-151.0,0.00024054,7]
[375291301,1753618267915,-894.62,0.00024109,2]
[375291302,1753618267925,-460.0,0.00024109,2]
[375291303,1753618267935,-1057.71,0.00024109,2]
[375291304,1753618267944,-460.0,0.00024109,2]
[375291305,1753618267953,-495.69,0.00024109,2]
[375291306,1753618267963,-481.75,0.00024109,2]
[375291307,1753618267972,-1372.13,0.00024109,2]
[375291308,1753618267981,-460.0,0.00024109,2]
[375291309,1753618267991,-756.82,0.00024109,2]
[375291310,1753618268000,-493.3,0.00024109,2]
[375291311,1753618268010,-807.96,0.00024109,2]
[375291312,1753618268019,-2045.53,0.00024109,2]
[375291313,1753618268028,-598.82,0.00024109,2]
[375291314,1753618268038,-460.0,0.00024109,2]
[375291315,1753618268047,-460.0,0.00024109,2]
[375291316,1753618268057,-636.45,0.00024109,2]
[375291317,1753618268066,-460.0,0.00024109,2]
[375291318,1753618268076,-523.9,0.00024109,2]
[375291319,1753618268085,-1858.93,0.00024109,2]
[375291320,1753618268095,-1100.48,0.00024109,2]
[375291321,1753618268104,-1248.85,0.00024109,2]
[375291322,1753618268113,-1298.78,0.00024109,2]
[375291323,1753618268123,-460.0,0.00024109,2]
[375291324,1753618268134,-460.0,0.00024109,2]
[375291325,1753618268143,-151.0,0.00024109,7]
[375291326,1753618268152,-332.57,0.00024109,2]
[375291327,1753618268160,-539.55,0.00024109,2]
[375291328,1753618268169,-548.0,0.00024109,2]
[375291329,1753618268179,-1243.52,0.00024109,2]
[375291330,1753618268188,-460.0,0.00024109,2]
[375291331,1753618268197,-151.0,0.00024109,7]
[375291332,1753618268207,-460.0,0.00024109,2]
[375291333,1753618268216,-151.0,0.00024109,7]
[375291334,1753618268225,-488.97,0.00024109,2]
[375291335,1753618268234,-460.0,0.00024109,2]
[375291336,1753618268244,-612.0,0.00024109,2]
[375291337,1753618268254,-460.0,0.00024109,2]
[375291338,1753618268264,-1391.93,0.00024109,2]
[375291339,1753618268273,-460.0,0.00024109,2]
[375291340,1753618268282,-460.0,0.00024109,2]
[375291341,1753618268290,-600.0,0.00024129,2]
[375291342,1753618268299,-172.29839479,0.00024137,2]
[375291343,1753618268308,-534.3,0.0002414,6]
[375291344,1753618268318,-500.0,0.00024145,2]
[375291345,1753618268327,-500.0,0.0002415,2]
[375291346,1753618268337,-311.96483399,0.00024178,2]
[375291347,1753618268347,-1247.85933598,0.00024178,2]
[375291348,1753618268356,-2807.68350594,0.00024178,2]
[375291349,1753618268366,-4991.4373439,0.00024178,2]
[375291350,1753618268376,-7791.321729,0.00024178,2]
[375291351,1753618268387,-500.0,0.00024233,2]
[375291352,1753618268396,-2180.37725393,0.00024245,10]
[375291353,1753618268405,-172.29839479,0.00024274,2]